[Event "Titled Tuesday Blitz November 07 Early 2023"]
[White "kingapolak"]
[Black "McBryde, Lamel"]
[BlackFideId "2058596"]
[WhiteElo "2171"]
[BlackElo "2447"]
[Result "0-1"]
[Round "2"]
[TimeControl "180+1"]
[Date "2023.11.07"]
[WhiteClock "0:00:00"]
[BlackClock "0:00:29"]
[Board "225"]

1. e4 {[%clk 0:03:00]}  Nf6 {[%clk 0:02:58]} 2. d3 {[%clk 0:02:55]}  e6 {[%clk 0:02:57]} 3. Nf3 {[%clk 0:02:51]}  d5 {[%clk 0:02:54]} 4. Nbd2 {[%clk 0:02:50]}  b6 {[%clk 0:02:50]} 5. e5 {[%clk 0:02:46]}  Nfd7 {[%clk 0:02:44]} 6. g3 {[%clk 0:02:47]}  c5 {[%clk 0:02:43]} 7. c3 {[%clk 0:02:36]}  Nc6 {[%clk 0:02:44]} 8. d4 {[%clk 0:02:37]}  Bb7 {[%clk 0:02:37]} 9. Bg2 {[%clk 0:02:36]}  Be7 {[%clk 0:02:31]} 10. O-O {[%clk 0:02:35]}  O-O {[%clk 0:02:31]} 11. Re1 {[%clk 0:02:34]}  a5 {[%clk 0:02:24]} 12. h4 {[%clk 0:02:33]}  Ba6 {[%clk 0:02:18]} 13. h5 {[%clk 0:02:31]}  h6 {[%clk 0:02:17]} 14. Nf1 {[%clk 0:02:30]}  Rc8 {[%clk 0:02:12]} 15. Bf4 {[%clk 0:02:26]}  cxd4 {[%clk 0:02:11]} 16. cxd4 {[%clk 0:02:21]}  Nb4 {[%clk 0:02:11]} 17. Rc1 {[%clk 0:01:36]}  Nxa2 {[%clk 0:01:51]} 18. Rxc8 {[%clk 0:01:30]}  Qxc8 {[%clk 0:01:52]} 19. N1h2 {[%clk 0:01:19]}  Nb4 {[%clk 0:01:51]} 20. Bf1 {[%clk 0:01:11]}  Bxf1 {[%clk 0:01:25]} 21. Rxf1 {[%clk 0:01:09]}  Qc4 {[%clk 0:01:17]} 22. Ng4 {[%clk 0:00:58]}  Rc8 {[%clk 0:01:15]} 23. Bxh6 {[%clk 0:00:40]}  gxh6 {[%clk 0:01:13]} 24. Qd2 {[%clk 0:00:39]}  Qd3 {[%clk 0:00:55]} 25. Qf4 {[%clk 0:00:30]}  Bf8 {[%clk 0:00:41]} 26. Nf6+ {[%clk 0:00:17]}  Nxf6 {[%clk 0:00:38]} 27. exf6 {[%clk 0:00:00]}  Qe4 {[%clk 0:00:29]} 0-1


[Site "https://www.chess.com"]

[Event "Titled Tuesday Blitz November 07 Early 2023"]
[White "crazy_m_attack"]
[Black "Fudalej, Michal"]
[BlackFideId "1118781"]
[WhiteElo "2444"]
[BlackElo "2158"]
[Result "0-1"]
[Round "2"]
[TimeControl "180+1"]
[Date "2023.11.07"]
[WhiteClock "0:00:20"]
[BlackClock "0:01:33"]
[Board "228"]

1. e4 {[%clk 0:03:00]}  c6 {[%clk 0:02:57]} 2. d4 {[%clk 0:03:00]}  d5 {[%clk 0:02:58]} 3. Nc3 {[%clk 0:03:00]}  g6 {[%clk 0:02:57]} 4. Nf3 {[%clk 0:02:56]}  Bg7 {[%clk 0:02:57]} 5. h3 {[%clk 0:02:46]}  Nf6 {[%clk 0:02:55]} 6. e5 {[%clk 0:02:44]}  Ne4 {[%clk 0:02:55]} 7. Bd3 {[%clk 0:02:43]}  Nxc3 {[%clk 0:02:54]} 8. bxc3 {[%clk 0:02:43]}  c5 {[%clk 0:02:55]} 9. O-O {[%clk 0:02:37]}  Nc6 {[%clk 0:02:52]} 10. Be3 {[%clk 0:02:10]}  c4 {[%clk 0:02:34]} 11. Be2 {[%clk 0:02:10]}  Bf5 {[%clk 0:02:33]} 12. Nh4 {[%clk 0:02:08]}  Qd7 {[%clk 0:02:27]} 13. Nxf5 {[%clk 0:02:06]}  gxf5 {[%clk 0:02:16]} 14. Bh5 {[%clk 0:02:04]}  e6 {[%clk 0:02:14]} 15. Bg5 {[%clk 0:01:59]}  O-O {[%clk 0:02:06]} 16. Qf3 {[%clk 0:01:57]}  Kh8 {[%clk 0:02:06]} 17. Qg3 {[%clk 0:01:49]}  f6 {[%clk 0:02:04]} 18. exf6 {[%clk 0:01:45]}  Bxf6 {[%clk 0:02:05]} 19. Bxf6+ {[%clk 0:01:43]}  Rxf6 {[%clk 0:02:06]} 20. Rfe1 {[%clk 0:01:37]}  Rg8 {[%clk 0:02:06]} 21. Qf4 {[%clk 0:01:37]}  Qg7 {[%clk 0:01:57]} 22. Bf3 {[%clk 0:01:34]}  Rh6 {[%clk 0:01:54]} 23. Kh2 {[%clk 0:01:26]}  Nd8 {[%clk 0:01:47]} 24. Qe5 {[%clk 0:01:21]}  Rf6 {[%clk 0:01:44]} 25. g3 {[%clk 0:01:01]}  Nf7 {[%clk 0:01:43]} 26. Qc7 {[%clk 0:00:59]}  Ng5 {[%clk 0:01:42]} 27. Qxg7+ {[%clk 0:00:57]}  Rxg7 {[%clk 0:01:43]} 28. Bg2 {[%clk 0:00:57]}  Ne4 {[%clk 0:01:43]} 29. Bxe4 {[%clk 0:00:57]}  fxe4 {[%clk 0:01:44]} 30. Kg2 {[%clk 0:00:57]}  Rgf7 {[%clk 0:01:44]} 31. Re2 {[%clk 0:00:53]}  Rf3 {[%clk 0:01:44]} 32. Rb1 {[%clk 0:00:52]}  Rxc3 {[%clk 0:01:44]} 33. Rb5 {[%clk 0:00:42]}  b6 {[%clk 0:01:42]} 34. Rb2 {[%clk 0:00:38]}  Kg8 {[%clk 0:01:41]} 35. Re3 {[%clk 0:00:35]}  Rxe3 {[%clk 0:01:37]} 36. fxe3 {[%clk 0:00:36]}  Rf3 {[%clk 0:01:38]} 37. Rb1 {[%clk 0:00:33]}  Rxe3 {[%clk 0:01:38]} 38. Rf1 {[%clk 0:00:31]}  Re2+ {[%clk 0:01:38]} 39. Rf2 {[%clk 0:00:32]}  Rxf2+ {[%clk 0:01:38]} 40. Kxf2 {[%clk 0:00:32]}  Kf7 {[%clk 0:01:38]} 41. c3 {[%clk 0:00:32]}  Kf6 {[%clk 0:01:38]} 42. Ke3 {[%clk 0:00:32]}  e5 {[%clk 0:01:38]} 43. g4 {[%clk 0:00:28]}  h6 {[%clk 0:01:35]} 44. h4 {[%clk 0:00:28]}  exd4+ {[%clk 0:01:34]} 45. Kxd4 {[%clk 0:00:28]}  a6 {[%clk 0:01:35]} 46. a3 {[%clk 0:00:26]}  b5 {[%clk 0:01:33]} 47. Ke3 {[%clk 0:00:22]}  Ke5 {[%clk 0:01:33]} 48. Ke2 {[%clk 0:00:20]}  Kf4 {[%clk 0:01:33]} 0-1


[Site "https://www.chess.com"]

[Event "Titled Tuesday Blitz November 07 Early 2023"]
[White "szachmistrz2500"]
[Black "Silvestre, Christian"]
[BlackFideId "30956269"]
[WhiteElo "2441"]
[BlackElo "2154"]
[Result "1-0"]
[Round "2"]
[TimeControl "180+1"]
[Date "2023.11.07"]
[WhiteClock "0:00:48"]
[BlackClock "0:00:26"]
[Board "230"]

1. Nf3 {[%clk 0:03:00]}  Nf6 {[%clk 0:02:58]} 2. g3 {[%clk 0:03:01]}  d5 {[%clk 0:02:57]} 3. Bg2 {[%clk 0:03:02]}  c5 {[%clk 0:02:57]} 4. O-O {[%clk 0:03:03]}  Nc6 {[%clk 0:02:57]} 5. d3 {[%clk 0:03:04]}  b6 {[%clk 0:02:54]} 6. Nbd2 {[%clk 0:03:04]}  Bb7 {[%clk 0:02:55]} 7. e4 {[%clk 0:03:03]}  e6 {[%clk 0:02:54]} 8. Re1 {[%clk 0:03:02]}  Be7 {[%clk 0:02:55]} 9. e5 {[%clk 0:03:01]}  Nd7 {[%clk 0:02:54]} 10. c3 {[%clk 0:03:00]}  h5 {[%clk 0:02:53]} 11. h4 {[%clk 0:03:00]}  Qc7 {[%clk 0:02:51]} 12. Qe2 {[%clk 0:02:59]}  O-O-O {[%clk 0:02:50]} 13. a3 {[%clk 0:02:59]}  Rdg8 {[%clk 0:02:38]} 14. Nf1 {[%clk 0:02:55]}  Nd8 {[%clk 0:02:04]} 15. b4 {[%clk 0:02:52]}  f6 {[%clk 0:02:03]} 16. d4 {[%clk 0:02:44]}  fxe5 {[%clk 0:01:53]} 17. dxe5 {[%clk 0:02:28]}  Nf7 {[%clk 0:01:50]} 18. Bh3 {[%clk 0:02:28]}  Nf8 {[%clk 0:01:41]} 19. bxc5 {[%clk 0:02:17]}  bxc5 {[%clk 0:01:37]} 20. Ng5 {[%clk 0:02:01]}  Nxg5 {[%clk 0:01:36]} 21. hxg5 {[%clk 0:02:00]}  h4 {[%clk 0:01:31]} 22. g4 {[%clk 0:01:59]}  Ng6 {[%clk 0:01:20]} 23. f4 {[%clk 0:01:57]}  Rf8 {[%clk 0:01:18]} 24. f5 {[%clk 0:01:56]}  exf5 {[%clk 0:00:59]} 25. gxf5 {[%clk 0:01:56]}  Kb8 {[%clk 0:00:51]} 26. fxg6 {[%clk 0:01:52]}  d4 {[%clk 0:00:49]} 27. Qb5 {[%clk 0:01:32]}  dxc3 {[%clk 0:00:35]} 28. Bg2 {[%clk 0:01:24]}  h3 {[%clk 0:00:31]} 29. Qxb7+ {[%clk 0:01:21]}  Qxb7 {[%clk 0:00:32]} 30. Bxb7 {[%clk 0:01:21]}  Kxb7 {[%clk 0:00:33]} 31. Be3 {[%clk 0:01:17]}  Rf5 {[%clk 0:00:33]} 32. Rab1+ {[%clk 0:01:15]}  Kc6 {[%clk 0:00:33]} 33. Rbc1 {[%clk 0:01:10]}  Bxg5 {[%clk 0:00:32]} 34. Rxc3 {[%clk 0:01:08]}  Bxe3+ {[%clk 0:00:32]} 35. Rcxe3 {[%clk 0:01:06]}  Rg5+ {[%clk 0:00:32]} 36. Rg3 {[%clk 0:01:06]}  h2+ {[%clk 0:00:30]} 37. Kh1 {[%clk 0:01:04]}  Rf5 {[%clk 0:00:27]} 38. Nxh2 {[%clk 0:01:01]}  Rf2 {[%clk 0:00:25]} 39. Rg2 {[%clk 0:01:01]}  Rxg2 {[%clk 0:00:25]} 40. Kxg2 {[%clk 0:01:00]}  Rh6 {[%clk 0:00:26]} 41. e6 {[%clk 0:01:00]}  Rxg6+ {[%clk 0:00:27]} 42. Kf2 {[%clk 0:00:58]}  Rf6+ {[%clk 0:00:27]} 43. Nf3 {[%clk 0:00:59]}  Rf8 {[%clk 0:00:27]} 44. Rd1 {[%clk 0:00:55]}  Re8 {[%clk 0:00:26]} 45. Ng5 {[%clk 0:00:53]}  c4 {[%clk 0:00:23]} 46. Ke3 {[%clk 0:00:53]}  Kc5 {[%clk 0:00:23]} 47. Ke4 {[%clk 0:00:53]}  c3 {[%clk 0:00:21]} 48. Kd3 {[%clk 0:00:50]}  Rd8+ {[%clk 0:00:21]} 49. Kc2 {[%clk 0:00:50]}  Re8 {[%clk 0:00:20]} 50. Kxc3 {[%clk 0:00:50]}  a5 {[%clk 0:00:17]} 51. Rd7 {[%clk 0:00:49]}  Kc6 {[%clk 0:00:17]} 52. Rxg7 {[%clk 0:00:49]}  Kd6 {[%clk 0:00:16]} 53. Rd7+ {[%clk 0:00:46]}  Kc6 {[%clk 0:00:16]} 54. Kd4 {[%clk 0:00:45]}  Rxe6 {[%clk 0:00:17]} 55. Nxe6 {[%clk 0:00:44]}  Kxd7 {[%clk 0:00:17]} 56. Nc5+ {[%clk 0:00:44]}  Kc6 {[%clk 0:00:18]} 57. Kc4 {[%clk 0:00:44]}  Kb6 {[%clk 0:00:18]} 58. a4 {[%clk 0:00:44]}  Kc6 {[%clk 0:00:18]} 59. Nb3 {[%clk 0:00:45]}  Kb6 {[%clk 0:00:19]} 60. Nd4 {[%clk 0:00:45]}  Ka6 {[%clk 0:00:20]} 61. Kc5 {[%clk 0:00:45]}  Ka7 {[%clk 0:00:20]} 62. Kb5 {[%clk 0:00:46]}  Kb7 {[%clk 0:00:21]} 63. Kxa5 {[%clk 0:00:46]}  Ka7 {[%clk 0:00:22]} 64. Kb5 {[%clk 0:00:47]}  Kb7 {[%clk 0:00:23]} 65. a5 {[%clk 0:00:48]}  Ka7 {[%clk 0:00:23]} 66. a6 {[%clk 0:00:48]}  Kb8 {[%clk 0:00:23]} 67. Kb6 {[%clk 0:00:49]}  Ka8 {[%clk 0:00:24]} 68. Ne6 {[%clk 0:00:48]}  Kb8 {[%clk 0:00:25]} 69. a7+ {[%clk 0:00:48]}  Ka8 {[%clk 0:00:26]} 70. Nc7# {[%clk 0:00:48]} 1-0


[Site "https://www.chess.com"]

[Event "Titled Tuesday Blitz November 07 Early 2023"]
[White "Petersson, Kjell"]
[Black "Shishkov, Andrei"]
[WhiteFideId "1705148"]
[BlackFideId "4500563"]
[WhiteElo "2150"]
[BlackElo "2438"]
[Result "0-1"]
[Round "2"]
[TimeControl "180+1"]
[Date "2023.11.07"]
[WhiteClock "0:00:00"]
[BlackClock "0:00:11"]
[Board "231"]

1. d4 {[%clk 0:03:00]}  Nf6 {[%clk 0:02:49]} 2. Bf4 {[%clk 0:03:01]}  d5 {[%clk 0:02:49]} 3. e3 {[%clk 0:03:01]}  c5 {[%clk 0:02:50]} 4. Nd2 {[%clk 0:02:59]}  Nc6 {[%clk 0:02:45]} 5. c3 {[%clk 0:02:59]}  Qb6 {[%clk 0:02:44]} 6. Qb3 {[%clk 0:02:51]}  c4 {[%clk 0:02:43]} 7. Qc2 {[%clk 0:02:50]}  g6 {[%clk 0:02:19]} 8. e4 {[%clk 0:02:49]}  Nxe4 {[%clk 0:02:03]} 9. Nxe4 {[%clk 0:02:48]}  dxe4 {[%clk 0:02:04]} 10. Bxc4 {[%clk 0:02:47]}  Bf5 {[%clk 0:02:00]} 11. Be3 {[%clk 0:02:47]}  Qc7 {[%clk 0:01:37]} 12. Qb3 {[%clk 0:02:35]}  e6 {[%clk 0:01:35]} 13. Ne2 {[%clk 0:02:32]}  Bd6 {[%clk 0:01:30]} 14. Ng3 {[%clk 0:02:28]}  O-O {[%clk 0:01:24]} 15. Be2 {[%clk 0:02:10]}  Na5 {[%clk 0:01:08]} 16. Qa4 {[%clk 0:02:04]}  a6 {[%clk 0:01:07]} 17. O-O {[%clk 0:01:50]}  b5 {[%clk 0:01:06]} 18. Qd1 {[%clk 0:01:46]}  Nc4 {[%clk 0:01:05]} 19. Bc1 {[%clk 0:01:36]}  Rfd8 {[%clk 0:00:48]} 20. Nxf5 {[%clk 0:01:21]}  exf5 {[%clk 0:00:46]} 21. g3 {[%clk 0:01:13]}  f4 {[%clk 0:00:46]} 22. Bxc4 {[%clk 0:01:06]}  bxc4 {[%clk 0:00:43]} 23. Qe2 {[%clk 0:01:04]}  Re8 {[%clk 0:00:31]} 24. Qg4 {[%clk 0:00:50]}  f5 {[%clk 0:00:18]} 25. Qh4 {[%clk 0:00:48]}  f3 {[%clk 0:00:16]} 26. Be3 {[%clk 0:00:45]}  Be7 {[%clk 0:00:16]} 27. Qh6 {[%clk 0:00:42]}  Bf6 {[%clk 0:00:16]} 28. Rfd1 {[%clk 0:00:35]}  Qg7 {[%clk 0:00:15]} 29. Qxg7+ {[%clk 0:00:34]}  Kxg7 {[%clk 0:00:16]} 30. b3 {[%clk 0:00:30]}  Rac8 {[%clk 0:00:15]} 31. b4 {[%clk 0:00:30]}  Red8 {[%clk 0:00:13]} 32. a4 {[%clk 0:00:30]}  Rd5 {[%clk 0:00:13]} 33. Rdb1 {[%clk 0:00:29]}  Rb8 {[%clk 0:00:12]} 34. Ra2 {[%clk 0:00:26]}  g5 {[%clk 0:00:12]} 35. Rab2 {[%clk 0:00:25]}  Kg6 {[%clk 0:00:12]} 36. b5 {[%clk 0:00:25]}  axb5 {[%clk 0:00:12]} 37. Rxb5 {[%clk 0:00:23]}  Rdxb5 {[%clk 0:00:11]} 38. Rxb5 {[%clk 0:00:21]}  Ra8 {[%clk 0:00:10]} 39. a5 {[%clk 0:00:22]}  Bd8 {[%clk 0:00:10]} 40. d5 {[%clk 0:00:18]}  Rxa5 {[%clk 0:00:09]} 41. Rxa5 {[%clk 0:00:16]}  Bxa5 {[%clk 0:00:10]} 42. Bd4 {[%clk 0:00:15]}  Bc7 {[%clk 0:00:10]} 43. Kf1 {[%clk 0:00:14]}  Kf7 {[%clk 0:00:08]} 44. Ke1 {[%clk 0:00:14]}  Ke7 {[%clk 0:00:09]} 45. Kd2 {[%clk 0:00:11]}  f4 {[%clk 0:00:08]} 46. gxf4 {[%clk 0:00:10]}  Bxf4+ {[%clk 0:00:08]} 47. Be3 {[%clk 0:00:07]}  Kd6 {[%clk 0:00:08]} 48. h3 {[%clk 0:00:05]}  Kxd5 {[%clk 0:00:08]} 49. Bxf4 {[%clk 0:00:03]}  gxf4 {[%clk 0:00:08]} 50. Ke1 {[%clk 0:00:02]}  Ke5 {[%clk 0:00:08]} 51. Kd2 {[%clk 0:00:02]}  Kf5 {[%clk 0:00:09]} 52. Ke1 {[%clk 0:00:01]}  Kg5 {[%clk 0:00:09]} 53. Kf1 {[%clk 0:00:01]}  Kh4 {[%clk 0:00:10]} 54. Kg1 {[%clk 0:00:01]}  Kxh3 {[%clk 0:00:10]} 55. Kh1 {[%clk 0:00:02]}  e3 {[%clk 0:00:10]} 56. fxe3 {[%clk 0:00:02]}  fxe3 {[%clk 0:00:11]} 57. Kg1 {[%clk 0:00:02]}  f2+ {[%clk 0:00:10]} 58. Kf1 {[%clk 0:00:02]}  Kg3 {[%clk 0:00:11]} 59. Ke2 {[%clk 0:00:00]}  Kg2 {[%clk 0:00:11]} 0-1


[Site "https://www.chess.com"]

[Event "Titled Tuesday Blitz November 07 Early 2023"]
[White "pasteta13"]
[Black "Modric, Nesa"]
[BlackFideId "922579"]
[WhiteElo "2438"]
[BlackElo "2147"]
[Result "1-0"]
[Round "2"]
[TimeControl "180+1"]
[Date "2023.11.07"]
[WhiteClock "0:00:06"]
[BlackClock "0:00:00"]
[Board "232"]

1. e4 {[%clk 0:03:00]}  d5 {[%clk 0:02:59]} 2. exd5 {[%clk 0:03:00]}  Qxd5 {[%clk 0:02:59]} 3. Nc3 {[%clk 0:03:01]}  Qa5 {[%clk 0:02:59]} 4. Nf3 {[%clk 0:03:01]}  c6 {[%clk 0:03:00]} 5. d4 {[%clk 0:02:58]}  Nf6 {[%clk 0:03:00]} 6. h3 {[%clk 0:02:59]}  Bf5 {[%clk 0:03:00]} 7. Bd3 {[%clk 0:02:59]}  Bxd3 {[%clk 0:03:00]} 8. Qxd3 {[%clk 0:03:00]}  e6 {[%clk 0:03:00]} 9. O-O {[%clk 0:03:01]}  Bb4 {[%clk 0:03:00]} 10. Bg5 {[%clk 0:02:49]}  Nbd7 {[%clk 0:02:58]} 11. Ne4 {[%clk 0:02:47]}  Be7 {[%clk 0:02:45]} 12. Rfe1 {[%clk 0:02:41]}  O-O {[%clk 0:02:44]} 13. Ne5 {[%clk 0:02:36]}  Qc7 {[%clk 0:02:04]} 14. Re3 {[%clk 0:02:16]}  Nxe5 {[%clk 0:02:01]} 15. dxe5 {[%clk 0:02:12]}  Nxe4 {[%clk 0:02:00]} 16. Bxe7 {[%clk 0:02:10]}  Qxe7 {[%clk 0:01:40]} 17. Rxe4 {[%clk 0:02:10]}  Rfd8 {[%clk 0:01:39]} 18. Rd4 {[%clk 0:02:10]}  Rxd4 {[%clk 0:01:38]} 19. Qxd4 {[%clk 0:02:11]}  Qd8 {[%clk 0:01:12]} 20. Rd1 {[%clk 0:01:56]}  Qxd4 {[%clk 0:00:48]} 21. Rxd4 {[%clk 0:01:57]}  Kf8 {[%clk 0:00:45]} 22. Rd7 {[%clk 0:01:56]}  Rb8 {[%clk 0:00:43]} 23. f4 {[%clk 0:01:52]}  Ke8 {[%clk 0:00:43]} 24. Rc7 {[%clk 0:01:52]}  a5 {[%clk 0:00:39]} 25. Kf1 {[%clk 0:01:43]}  g6 {[%clk 0:00:38]} 26. Ke2 {[%clk 0:01:42]}  h5 {[%clk 0:00:38]} 27. Kf3 {[%clk 0:01:35]}  a4 {[%clk 0:00:25]} 28. a3 {[%clk 0:01:29]}  b5 {[%clk 0:00:10]} 29. c3 {[%clk 0:01:19]}  Rb6 {[%clk 0:00:09]} 30. Ke4 {[%clk 0:01:17]}  c5 {[%clk 0:00:04]} 31. g4 {[%clk 0:01:04]}  hxg4 {[%clk 0:00:04]} 32. hxg4 {[%clk 0:01:04]}  b4 {[%clk 0:00:05]} 33. Rxc5 {[%clk 0:01:01]}  bxa3 {[%clk 0:00:05]} 34. bxa3 {[%clk 0:01:01]}  Rb3 {[%clk 0:00:05]} 35. Ra5 {[%clk 0:00:35]}  Rxa3 {[%clk 0:00:05]} 36. c4 {[%clk 0:00:34]}  Ra1 {[%clk 0:00:04]} 37. Kd4 {[%clk 0:00:30]}  a3 {[%clk 0:00:05]} 38. Kc5 {[%clk 0:00:30]}  a2 {[%clk 0:00:05]} 39. Ra4 {[%clk 0:00:18]}  Kd7 {[%clk 0:00:04]} 40. Ra7+ {[%clk 0:00:17]}  Kc8 {[%clk 0:00:04]} 41. Kc6 {[%clk 0:00:17]}  Kb8 {[%clk 0:00:04]} 42. Ra4 {[%clk 0:00:15]}  Rf1 {[%clk 0:00:02]} 43. Rxa2 {[%clk 0:00:11]}  Rxf4 {[%clk 0:00:03]} 44. c5 {[%clk 0:00:12]}  Rxg4 {[%clk 0:00:03]} 45. Rd2 {[%clk 0:00:07]}  Rb4 {[%clk 0:00:02]} 46. Kd7 {[%clk 0:00:07]}  Rc4 {[%clk 0:00:02]} 47. c6 {[%clk 0:00:07]}  g5 {[%clk 0:00:02]} 48. Rb2+ {[%clk 0:00:06]}  Ka7 {[%clk 0:00:01]} 49. c7 {[%clk 0:00:07]}  Rd4+ {[%clk 0:00:01]} 50. Ke7 {[%clk 0:00:04]}  Rc4 {[%clk 0:00:01]} 51. Kd8 {[%clk 0:00:03]}  Rd4+ {[%clk 0:00:01]} 52. Kc8 {[%clk 0:00:04]}  Rc4 {[%clk 0:00:02]} 53. Rb7+ {[%clk 0:00:04]}  Ka6 {[%clk 0:00:02]} 54. Kb8 {[%clk 0:00:05]}  g4 {[%clk 0:00:01]} 55. c8=Q {[%clk 0:00:05]}  Rxc8+ {[%clk 0:00:02]} 56. Kxc8 {[%clk 0:00:06]}  g3 {[%clk 0:00:02]} 57. Rxf7 {[%clk 0:00:06]}  Kb5 {[%clk 0:00:03]} 58. Kd7 {[%clk 0:00:06]}  Kc5 {[%clk 0:00:03]} 59. Kxe6 {[%clk 0:00:06]}  Kd4 {[%clk 0:00:04]} 60. Rg7 {[%clk 0:00:07]}  Ke3 {[%clk 0:00:00]} 61. Rxg3+ {[%clk 0:00:06]} 1-0


[Site "https://www.chess.com"]

[Event "Titled Tuesday Blitz November 07 Early 2023"]
[White "Ishbaev, Alibek"]
[Black "Estevez Polanco, Leonardo Rafael"]
[WhiteFideId "14205017"]
[BlackFideId "6402798"]
[WhiteElo "2437"]
[BlackElo "2146"]
[Result "1-0"]
[Round "2"]
[TimeControl "180+1"]
[Date "2023.11.07"]
[WhiteClock "0:00:28"]
[BlackClock "0:00:19"]
[Board "233"]

1. c4 {[%clk 0:02:57]}  Nf6 {[%clk 0:02:59]} 2. Nc3 {[%clk 0:02:57]}  e6 {[%clk 0:03:00]} 3. e4 {[%clk 0:02:57]}  d5 {[%clk 0:02:55]} 4. e5 {[%clk 0:02:57]}  Ne4 {[%clk 0:02:54]} 5. Nxe4 {[%clk 0:02:57]}  dxe4 {[%clk 0:02:55]} 6. Qg4 {[%clk 0:02:57]}  Qd4 {[%clk 0:02:45]} 7. Nf3 {[%clk 0:02:57]}  Qc5 {[%clk 0:02:31]} 8. Qxe4 {[%clk 0:02:55]}  Nc6 {[%clk 0:02:32]} 9. Bd3 {[%clk 0:02:41]}  g6 {[%clk 0:02:31]} 10. O-O {[%clk 0:02:40]}  Bg7 {[%clk 0:02:32]} 11. Re1 {[%clk 0:02:32]}  O-O {[%clk 0:02:31]} 12. b3 {[%clk 0:02:31]}  Nb4 {[%clk 0:02:30]} 13. Bb2 {[%clk 0:02:29]}  Nxd3 {[%clk 0:02:28]} 14. Qxd3 {[%clk 0:02:30]}  b6 {[%clk 0:02:22]} 15. Qe3 {[%clk 0:02:30]}  Qc6 {[%clk 0:02:17]} 16. d4 {[%clk 0:02:29]}  Bb7 {[%clk 0:02:16]} 17. Rad1 {[%clk 0:02:30]}  Rad8 {[%clk 0:02:15]} 18. Rd2 {[%clk 0:02:25]}  a5 {[%clk 0:02:15]} 19. Red1 {[%clk 0:02:25]}  a4 {[%clk 0:02:16]} 20. d5 {[%clk 0:02:25]}  exd5 {[%clk 0:02:13]} 21. cxd5 {[%clk 0:02:25]}  Qe8 {[%clk 0:02:12]} 22. e6 {[%clk 0:02:12]}  fxe6 {[%clk 0:02:05]} 23. Bxg7 {[%clk 0:02:10]}  Kxg7 {[%clk 0:02:06]} 24. Ng5 {[%clk 0:01:39]}  exd5 {[%clk 0:01:27]} 25. Ne6+ {[%clk 0:01:31]}  Kg8 {[%clk 0:01:27]} 26. Nxd8 {[%clk 0:01:26]}  Qxd8 {[%clk 0:01:18]} 27. Qe6+ {[%clk 0:01:25]}  Kh8 {[%clk 0:01:14]} 28. Qe5+ {[%clk 0:01:20]}  Qf6 {[%clk 0:01:13]} 29. Qxc7 {[%clk 0:01:16]}  Ba8 {[%clk 0:00:58]} 30. bxa4 {[%clk 0:01:00]}  d4 {[%clk 0:00:49]} 31. Qg3 {[%clk 0:00:50]}  Bd5 {[%clk 0:00:37]} 32. Rxd4 {[%clk 0:00:48]}  Bxa2 {[%clk 0:00:36]} 33. Rd6 {[%clk 0:00:36]}  Qb2 {[%clk 0:00:32]} 34. R6d2 {[%clk 0:00:30]}  Qb3 {[%clk 0:00:30]} 35. Qe5+ {[%clk 0:00:29]}  Kg8 {[%clk 0:00:30]} 36. Rd7 {[%clk 0:00:27]}  Rf7 {[%clk 0:00:22]} 37. Rd8+ {[%clk 0:00:27]}  Rf8 {[%clk 0:00:23]} 38. Rxf8+ {[%clk 0:00:27]}  Kxf8 {[%clk 0:00:23]} 39. Qf6+ {[%clk 0:00:28]}  Qf7 {[%clk 0:00:19]} 40. Rd8# {[%clk 0:00:28]} 1-0


[Site "https://www.chess.com"]

[Event "Titled Tuesday Blitz November 07 Early 2023"]
[White "Jesseinkman"]
[Black "ChessDojo"]
[WhiteElo "2433"]
[BlackElo "2131"]
[Result "1-0"]
[Round "2"]
[TimeControl "180+1"]
[Date "2023.11.07"]
[WhiteClock "0:00:12"]
[BlackClock "0:01:13"]
[Board "235"]

1. e4 {[%clk 0:03:00]}  e5 {[%clk 0:02:59]} 2. Nf3 {[%clk 0:03:00]}  Nc6 {[%clk 0:02:59]} 3. Bb5 {[%clk 0:02:56]}  Nf6 {[%clk 0:02:58]} 4. O-O {[%clk 0:02:55]}  Nxe4 {[%clk 0:02:57]} 5. Re1 {[%clk 0:02:53]}  Nd6 {[%clk 0:02:57]} 6. Bxc6 {[%clk 0:02:53]}  dxc6 {[%clk 0:02:57]} 7. Nxe5 {[%clk 0:02:53]}  Be7 {[%clk 0:02:57]} 8. d4 {[%clk 0:02:53]}  O-O {[%clk 0:02:57]} 9. c3 {[%clk 0:02:54]}  Bf6 {[%clk 0:02:56]} 10. Bf4 {[%clk 0:02:47]}  Re8 {[%clk 0:02:55]} 11. Nd2 {[%clk 0:02:47]}  Bf5 {[%clk 0:02:54]} 12. h3 {[%clk 0:02:47]}  c5 {[%clk 0:02:46]} 13. Qf3 {[%clk 0:02:44]}  cxd4 {[%clk 0:02:45]} 14. cxd4 {[%clk 0:02:45]}  Bg6 {[%clk 0:02:42]} 15. Rac1 {[%clk 0:02:43]}  c6 {[%clk 0:02:41]} 16. d5 {[%clk 0:02:30]}  cxd5 {[%clk 0:02:35]} 17. Qxd5 {[%clk 0:02:31]}  Nf5 {[%clk 0:02:28]} 18. Qxd8 {[%clk 0:02:11]}  Raxd8 {[%clk 0:02:29]} 19. Nxg6 {[%clk 0:02:09]}  hxg6 {[%clk 0:02:27]} 20. Rxe8+ {[%clk 0:01:58]}  Rxe8 {[%clk 0:02:28]} 21. Rc7 {[%clk 0:01:55]}  Bxb2 {[%clk 0:02:25]} 22. Rxb7 {[%clk 0:01:54]}  Bd4 {[%clk 0:02:25]} 23. Nf3 {[%clk 0:01:50]}  Bb6 {[%clk 0:02:23]} 24. Rb8 {[%clk 0:01:44]}  Rxb8 {[%clk 0:02:21]} 25. Bxb8 {[%clk 0:01:45]}  Nd4 {[%clk 0:02:21]} 26. Ne5 {[%clk 0:01:35]}  Ne2+ {[%clk 0:02:18]} 27. Kf1 {[%clk 0:01:31]}  Nc3 {[%clk 0:02:18]} 28. a3 {[%clk 0:01:22]}  Bc5 {[%clk 0:02:15]} 29. Nc4 {[%clk 0:01:14]}  Nb5 {[%clk 0:02:14]} 30. a4 {[%clk 0:01:12]}  Nc3 {[%clk 0:02:14]} 31. a5 {[%clk 0:01:12]}  Kf8 {[%clk 0:02:03]} 32. Ne5 {[%clk 0:00:58]}  Ke7 {[%clk 0:01:54]} 33. a6 {[%clk 0:00:30]}  Nd5 {[%clk 0:01:42]} 34. Bxa7 {[%clk 0:00:20]}  Bxa7 {[%clk 0:01:41]} 35. Nc6+ {[%clk 0:00:20]}  Kd6 {[%clk 0:01:41]} 36. Nxa7 {[%clk 0:00:21]}  Nb4 {[%clk 0:01:40]} 37. Nb5+ {[%clk 0:00:15]}  Kc6 {[%clk 0:01:39]} 38. a7 {[%clk 0:00:14]}  Kb7 {[%clk 0:01:39]} 39. Nd6+ {[%clk 0:00:14]}  Kxa7 {[%clk 0:01:39]} 40. Nxf7 {[%clk 0:00:15]}  Nd5 {[%clk 0:01:37]} 41. Ne5 {[%clk 0:00:14]}  Ne7 {[%clk 0:01:38]} 42. Ke2 {[%clk 0:00:15]}  Kb7 {[%clk 0:01:38]} 43. Ke3 {[%clk 0:00:15]}  Kc7 {[%clk 0:01:38]} 44. Ke4 {[%clk 0:00:15]}  Kd6 {[%clk 0:01:38]} 45. f4 {[%clk 0:00:16]}  Ke6 {[%clk 0:01:38]} 46. g4 {[%clk 0:00:16]}  Kf6 {[%clk 0:01:37]} 47. Nd7+ {[%clk 0:00:15]}  Ke6 {[%clk 0:01:36]} 48. Ne5 {[%clk 0:00:16]}  Kf6 {[%clk 0:01:36]} 49. h4 {[%clk 0:00:16]}  Ke6 {[%clk 0:01:35]} 50. Nxg6 {[%clk 0:00:13]}  Ng8 {[%clk 0:01:30]} 51. f5+ {[%clk 0:00:12]}  Kf7 {[%clk 0:01:29]} 52. g5 {[%clk 0:00:10]}  Ke8 {[%clk 0:01:25]} 53. Ke5 {[%clk 0:00:11]}  Kf7 {[%clk 0:01:23]} 54. Kd6 {[%clk 0:00:10]}  Ke8 {[%clk 0:01:22]} 55. Ke6 {[%clk 0:00:10]}  Kd8 {[%clk 0:01:13]} 56. Kf7 {[%clk 0:00:10]}  Nf6 {[%clk 0:01:13]} 57. gxf6 {[%clk 0:00:10]}  gxf6 {[%clk 0:01:14]} 58. Kxf6 {[%clk 0:00:11]}  Ke8 {[%clk 0:01:14]} 59. h5 {[%clk 0:00:11]}  Kd7 {[%clk 0:01:13]} 60. h6 {[%clk 0:00:12]} 1-0


[Site "https://www.chess.com"]